[Event "Early-Titled-Tuesday-Blitz-June-18-2024"]
[Site "Chess.com"]
[Date "2024.06.18"]
[Round "1"]
[White "Polish_fighter3000"]
[Black "Lady_Nika"]
[Result "1-0"]
[WhiteElo "3077"]
[BlackElo "2541"]
[TimeControl "180+1"]
[EndTime "8:06:38 PDT"]
[Termination "Polish_fighter3000 won by resignation"]

1. b3 {[%clk 0:02:48.7]} 1... d5 {[%clk 0:02:59.7]} 2. Bb2 {[%clk 0:02:49.6]}
2... Nf6 {[%clk 0:03:00.1]} 3. g3 {[%clk 0:02:47.7]} 3... g6 {[%clk 0:03:00.3]}
4. Bxf6 {[%clk 0:02:43.8]} 4... exf6 {[%clk 0:03:00.3]} 5. Bg2 {[%clk
0:02:44.5]} 5... Bg7 {[%clk 0:03:00.7]} 6. d4 {[%clk 0:02:44.5]} 6... f5 {[%clk
0:03:00.3]} 7. e3 {[%clk 0:02:44.6]} 7... O-O {[%clk 0:03:00.3]} 8. Ne2 {[%clk
0:02:43.1]} 8... c6 {[%clk 0:03:00.5]} 9. Nd2 {[%clk 0:02:41.6]} 9... Nd7 {[%clk
0:03:00.8]} 10. O-O {[%clk 0:02:39.5]} 10... Re8 {[%clk 0:03:00.5]} 11. c4
{[%clk 0:02:39.3]} 11... Nf6 {[%clk 0:02:59.7]} 12. Rc1 {[%clk 0:02:36.6]} 12...
Be6 {[%clk 0:02:59.3]} 13. Nf4 {[%clk 0:02:34.9]} 13... Qa5 {[%clk 0:02:52.9]}
14. cxd5 {[%clk 0:02:23.3]} 14... Nxd5 {[%clk 0:02:41.2]} 15. Nxd5 {[%clk
0:02:11.8]} 15... Bxd5 {[%clk 0:02:41.1]} 16. Rc5 {[%clk 0:02:06]} 16... Qd8
{[%clk 0:02:39.9]} 17. Bxd5 {[%clk 0:02:05.4]} 17... cxd5 {[%clk 0:02:26.6]} 18.
Qf3 {[%clk 0:02:05]} 18... Bf8 {[%clk 0:02:17.1]} 19. Rxd5 {[%clk 0:02:03.7]}
19... Qc7 {[%clk 0:02:12.9]} 20. Nc4 {[%clk 0:02:00.7]} 20... a6 {[%clk
0:02:01.6]} 21. a4 {[%clk 0:01:58.2]} 21... Rad8 {[%clk 0:01:45.5]} 22. Rxd8
{[%clk 0:01:52.1]} 22... Rxd8 {[%clk 0:01:45.5]} 23. Ra1 {[%clk 0:01:45.8]}
23... b5 {[%clk 0:01:41.1]} 24. axb5 {[%clk 0:01:46.7]} 24... axb5 {[%clk
0:01:41.4]} 25. Ne5 {[%clk 0:01:45]} 25... Bg7 {[%clk 0:01:10.7]} 26. Nc6 {[%clk
0:01:33.3]} 26... Rc8 {[%clk 0:01:05.8]} 27. Rc1 {[%clk 0:01:33.9]} 27... Kh8
{[%clk 0:01:03.3]} 28. Qd5 {[%clk 0:01:28.2]} 28... h5 {[%clk 0:01:00.7]} 29.
Qxb5 {[%clk 0:01:26.2]} 29... h4 {[%clk 0:00:58.6]} 30. Kg2 {[%clk 0:01:26.6]}
30... Ra8 {[%clk 0:00:50]} 31. Rc4 {[%clk 0:00:59.7]} 31... Qd6 {[%clk
0:00:44.2]} 32. Qc5 {[%clk 0:00:54.2]} 32... Qe6 {[%clk 0:00:42.4]} 33. d5
{[%clk 0:00:54.3]} 33... Qd7 {[%clk 0:00:27.1]} 34. Rxh4+ {[%clk 0:00:53.6]}
34... Kg8 {[%clk 0:00:26.6]} 35. Ne7+ {[%clk 0:00:54.1]} 35... Kf8 {[%clk
0:00:16.7]} 36. Nxf5+ {[%clk 0:00:54.1]} 36... Kg8 {[%clk 0:00:16.6]} 37. Ne7+
{[%clk 0:00:54.4]} 37... Kf8 {[%clk 0:00:16.6]} 38. Nxg6+ {[%clk 0:00:55]} 38...
Kg8 {[%clk 0:00:16.9]} 39. Ne7+ {[%clk 0:00:54.6]} 1-0

[Event "Early-Titled-Tuesday-Blitz-June-18-2024"]
[Site "Chess.com"]
[Date "2024.06.18"]
[Round "1"]
[White "abelmat"]
[Black "Nozdrachev_Leonid"]
[Result "0-1"]
[WhiteElo "2039"]
[BlackElo "2563"]
[TimeControl "180+1"]
[EndTime "8:06:40 PDT"]
[Termination "Nozdrachev_Leonid won by resignation"]

1. d4 {[%clk 0:02:51.7]} 1... d5 {[%clk 0:02:58.5]} 2. c4 {[%clk 0:02:51.1]}
2... e6 {[%clk 0:02:57.7]} 3. Nf3 {[%clk 0:02:51.5]} 3... Nf6 {[%clk 0:02:55.9]}
4. Nc3 {[%clk 0:02:51.6]} 4... c5 {[%clk 0:02:54]} 5. e3 {[%clk 0:02:51.2]} 5...
Nc6 {[%clk 0:02:53.3]} 6. Bd3 {[%clk 0:02:51]} 6... cxd4 {[%clk 0:02:51.3]} 7.
exd4 {[%clk 0:02:49.9]} 7... dxc4 {[%clk 0:02:51.4]} 8. Bxc4 {[%clk 0:02:50.3]}
8... Be7 {[%clk 0:02:49.9]} 9. O-O {[%clk 0:02:50.4]} 9... O-O {[%clk
0:02:48.4]} 10. d5 {[%clk 0:02:50.9]} 10... Na5 {[%clk 0:02:45.2]} 11. Bb3
{[%clk 0:02:32.2]} 11... Nxb3 {[%clk 0:02:43.9]} 12. axb3 {[%clk 0:02:32.2]}
12... exd5 {[%clk 0:02:42.2]} 13. Bg5 {[%clk 0:02:25.5]} 13... Bg4 {[%clk
0:02:40.7]} 14. Bxf6 {[%clk 0:02:17.2]} 14... Bxf6 {[%clk 0:02:41.6]} 15. Nxd5
{[%clk 0:02:14.6]} 15... Bxb2 {[%clk 0:02:40.1]} 16. Ra4 {[%clk 0:02:04.9]}
16... Be6 {[%clk 0:02:37.2]} 17. Qc2 {[%clk 0:01:30]} 17... Bxd5 {[%clk
0:02:33.8]} 18. Qxb2 {[%clk 0:01:28.5]} 18... Bxf3 {[%clk 0:02:33.3]} 19. gxf3
{[%clk 0:01:28.6]} 19... Qd3 {[%clk 0:02:30.8]} 20. Rg4 {[%clk 0:01:26]} 20...
g6 {[%clk 0:02:30.5]} 21. Kg2 {[%clk 0:01:14.8]} 21... Rac8 {[%clk 0:02:27]} 22.
h4 {[%clk 0:01:11.9]} 22... Rc3 {[%clk 0:02:26.5]} 23. Rg3 {[%clk 0:01:04.6]}
23... Rxb3 {[%clk 0:02:25.4]} 24. Qf6 {[%clk 0:01:04.7]} 24... Rb6 {[%clk
0:02:21.1]} 25. Qa1 {[%clk 0:00:58.8]} 25... Ra6 {[%clk 0:02:15.3]} 26. Qe5
{[%clk 0:00:55.4]} 26... Qd6 {[%clk 0:02:13.3]} 27. Qg5 {[%clk 0:00:53.6]} 27...
Qf6 {[%clk 0:02:12.8]} 28. Qg4 {[%clk 0:00:51.3]} 28... Ra5 {[%clk 0:02:08.9]}
29. Qe4 {[%clk 0:00:48.7]} 29... b6 {[%clk 0:02:06.9]} 30. Rh1 {[%clk
0:00:47.2]} 30... Rh5 {[%clk 0:02:03.5]} 31. Rg4 {[%clk 0:00:41.6]} 31... Rd8
{[%clk 0:02:00.4]} 32. Qb7 {[%clk 0:00:39.9]} 32... Rd3 {[%clk 0:01:56.9]} 33.
Rc4 {[%clk 0:00:24.1]} 33... Kg7 {[%clk 0:01:54.6]} 34. Rc8 {[%clk 0:00:19.5]}
34... Rhd5 {[%clk 0:01:53.6]} 35. Rh3 {[%clk 0:00:16.8]} 35... Rd7 {[%clk
0:01:49.6]} 36. Qa8 {[%clk 0:00:15.7]} 36... Rd8 {[%clk 0:01:49.8]} 37. Rxd8
{[%clk 0:00:14.9]} 37... Rxd8 {[%clk 0:01:49.7]} 38. Qxa7 {[%clk 0:00:15.1]}
38... Rd2 {[%clk 0:01:48.7]} 39. Qa8 {[%clk 0:00:13.3]} 39... Qd4 {[%clk
0:01:46.9]} 40. Rg3 {[%clk 0:00:12.6]} 40... Rxf2+ {[%clk 0:01:41.8]} 41. Kh3
{[%clk 0:00:13.5]} 41... Qd7+ {[%clk 0:01:41.3]} 42. Rg4 {[%clk 0:00:11]} 42...
Rxf3+ {[%clk 0:01:36.3]} 43. Kh2 {[%clk 0:00:08.5]} 43... Qxg4 {[%clk
0:01:34.2]} 44. Qa1+ {[%clk 0:00:06.8]} 44... Rf6 {[%clk 0:01:32.1]} 0-1

[Event "Early-Titled-Tuesday-Blitz-June-18-2024"]
[Site "Chess.com"]
[Date "2024.06.18"]
[Round "1"]
[White "Karina_Ivanova"]
[Black "chess94cu"]
[Result "0-1"]
[WhiteElo "2265"]
[BlackElo "2620"]
[TimeControl "180+1"]
[EndTime "8:06:42 PDT"]
[Termination "chess94cu won by resignation"]

1. Nc3 {[%clk 0:02:58.2]} 1... d5 {[%clk 0:02:12.5]} 2. d4 {[%clk 0:02:57.1]}
2... Nf6 {[%clk 0:02:12]} 3. Bf4 {[%clk 0:02:55]} 3... c5 {[%clk 0:02:12.5]} 4.
e3 {[%clk 0:02:54.1]} 4... a6 {[%clk 0:02:11.6]} 5. Nf3 {[%clk 0:02:38.6]} 5...
cxd4 {[%clk 0:02:10.3]} 6. exd4 {[%clk 0:02:37]} 6... Nc6 {[%clk 0:02:10.8]} 7.
Be2 {[%clk 0:02:33.7]} 7... Bg4 {[%clk 0:02:11.1]} 8. O-O {[%clk 0:02:28.2]}
8... e6 {[%clk 0:02:11.5]} 9. h3 {[%clk 0:02:26.1]} 9... Bxf3 {[%clk 0:02:06.8]}
10. Bxf3 {[%clk 0:02:25.7]} 10... Bd6 {[%clk 0:02:07.7]} 11. Bxd6 {[%clk
0:02:24.4]} 11... Qxd6 {[%clk 0:02:08.6]} 12. Qd2 {[%clk 0:02:16.1]} 12... O-O
{[%clk 0:02:08.1]} 13. Rad1 {[%clk 0:02:12]} 13... Rac8 {[%clk 0:02:05.4]} 14.
Rfe1 {[%clk 0:02:01.4]} 14... h6 {[%clk 0:02:03.7]} 15. a3 {[%clk 0:01:46.2]}
15... b5 {[%clk 0:02:00.6]} 16. Ne2 {[%clk 0:01:33.9]} 16... a5 {[%clk
0:01:58.2]} 17. c3 {[%clk 0:01:30.9]} 17... b4 {[%clk 0:01:53.6]} 18. axb4
{[%clk 0:01:30.4]} 18... axb4 {[%clk 0:01:54.5]} 19. cxb4 {[%clk 0:01:23.5]}
19... Qxb4 {[%clk 0:01:52.9]} 20. Nc3 {[%clk 0:01:19]} 20... Na5 {[%clk
0:01:49]} 21. Ne4 {[%clk 0:01:11.1]} 21... Qxd2 {[%clk 0:01:47.2]} 22. Nxf6+
{[%clk 0:01:10.8]} 22... gxf6 {[%clk 0:01:48.1]} 23. Rxd2 {[%clk 0:01:10.7]}
23... Nc4 {[%clk 0:01:45]} 24. Rc2 {[%clk 0:01:08.9]} 24... Rb8 {[%clk
0:01:45.4]} 25. Ree2 {[%clk 0:01:03.4]} 25... Rb4 {[%clk 0:01:42.8]} 26. Kf1
{[%clk 0:00:55.8]} 26... Ra8 {[%clk 0:01:32.2]} 27. g3 {[%clk 0:00:52.8]} 27...
Ra1+ {[%clk 0:01:28.6]} 28. Kg2 {[%clk 0:00:52.5]} 28... Rb1 {[%clk 0:01:23.8]}
29. h4 {[%clk 0:00:52]} 29... f5 {[%clk 0:01:20.7]} 30. g4 {[%clk 0:00:49.6]}
30... fxg4 {[%clk 0:01:18.5]} 31. Bxg4 {[%clk 0:00:49.6]} 31... Kg7 {[%clk
0:01:19.1]} 32. f4 {[%clk 0:00:44.5]} 32... R1xb2 {[%clk 0:01:12.9]} 33. Rxb2
{[%clk 0:00:44.1]} 33... Nxb2 {[%clk 0:01:08.9]} 34. Rd2 {[%clk 0:00:42]} 34...
Nc4 {[%clk 0:01:07]} 35. Re2 {[%clk 0:00:40.8]} 35... Nd6 {[%clk 0:01:04.9]} 36.
Rd2 {[%clk 0:00:39.8]} 36... Ne4 {[%clk 0:01:03.2]} 37. Rd3 {[%clk 0:00:39.5]}
37... Rb2+ {[%clk 0:00:59]} 38. Kf3 {[%clk 0:00:36.1]} 38... f5 {[%clk 0:00:40]}
39. Bh3 {[%clk 0:00:32.4]} 39... Nf2 {[%clk 0:00:37]} 0-1

[Event "Early-Titled-Tuesday-Blitz-June-18-2024"]
[Site "Chess.com"]
[Date "2024.06.18"]
[Round "1"]
[White "Gareth-Bale11"]
[Black "tomesao"]
[Result "1-0"]
[WhiteElo "2941"]
[BlackElo "2517"]
[TimeControl "180+1"]
[EndTime "8:06:44 PDT"]
[Termination "Gareth-Bale11 won by resignation"]

1. e4 {[%clk 0:02:59.3]} 1... c6 {[%clk 0:02:59.5]} 2. d4 {[%clk 0:02:58]} 2...
d5 {[%clk 0:03:00.4]} 3. exd5 {[%clk 0:02:58.7]} 3... cxd5 {[%clk 0:03:00.3]} 4.
Bd3 {[%clk 0:02:59.3]} 4... Nc6 {[%clk 0:03:00.2]} 5. c3 {[%clk 0:03:00]} 5...
Nf6 {[%clk 0:02:58.9]} 6. Bf4 {[%clk 0:03:00]} 6... Bg4 {[%clk 0:02:58.7]} 7.
Qb3 {[%clk 0:03:00.5]} 7... e5 {[%clk 0:02:58.6]} 8. dxe5 {[%clk 0:02:55.3]}
8... Nh5 {[%clk 0:02:57.6]} 9. Be3 {[%clk 0:02:45.6]} 9... Nxe5 {[%clk
0:02:52.3]} 10. Bb5+ {[%clk 0:02:43.2]} 10... Bd7 {[%clk 0:02:47.1]} 11. Qxd5
{[%clk 0:02:40.4]} 11... f6 {[%clk 0:01:55.6]} 12. Qxb7 {[%clk 0:02:23.7]} 12...
Be7 {[%clk 0:01:27.9]} 13. Nd2 {[%clk 0:02:13.6]} 13... Rb8 {[%clk 0:01:14.5]}
14. Bxd7+ {[%clk 0:02:10.2]} 14... Nxd7 {[%clk 0:01:14.2]} 15. Qd5 {[%clk
0:02:08.8]} 15... Ne5 {[%clk 0:01:07.7]} 16. Qxd8+ {[%clk 0:02:01.2]} 16... Bxd8
{[%clk 0:01:08.6]} 17. b4 {[%clk 0:01:54.3]} 17... Rc8 {[%clk 0:01:04.4]} 18.
Ne2 {[%clk 0:01:45.7]} 18... Nd3+ {[%clk 0:01:03.1]} 19. Kd1 {[%clk 0:01:41.2]}
19... f5 {[%clk 0:00:54.2]} 20. a3 {[%clk 0:01:30.2]} 20... a6 {[%clk
0:00:51.7]} 21. Kc2 {[%clk 0:01:27.8]} 21... Ne5 {[%clk 0:00:50.9]} 22. Kb3
{[%clk 0:01:28]} 22... Kf7 {[%clk 0:00:45.8]} 23. Nf3 {[%clk 0:01:24.8]} 23...
Ng4 {[%clk 0:00:45]} 24. Rhd1 {[%clk 0:01:14.9]} 24... Nxe3 {[%clk 0:00:41]} 25.
fxe3 {[%clk 0:01:14.7]} 25... Re8 {[%clk 0:00:41]} 26. Rd3 {[%clk 0:01:14.5]}
26... Nf6 {[%clk 0:00:38.2]} 27. Ned4 {[%clk 0:01:10]} 27... g6 {[%clk
0:00:36.9]} 28. c4 {[%clk 0:01:10.1]} 28... Ne4 {[%clk 0:00:36.1]} 29. c5 {[%clk
0:01:05]} 29... Bf6 {[%clk 0:00:36.1]} 30. Rc1 {[%clk 0:01:04.7]} 30... g5
{[%clk 0:00:36.2]} 31. Nxf5 {[%clk 0:01:04.3]} 31... g4 {[%clk 0:00:33]} 32.
N3d4 {[%clk 0:01:04.4]} 32... a5 {[%clk 0:00:29.7]} 33. Kc4 {[%clk 0:01:03.4]}
33... axb4 {[%clk 0:00:25]} 34. axb4 {[%clk 0:01:04.3]} 34... Ra8 {[%clk
0:00:25.1]} 35. c6 {[%clk 0:01:00.8]} 35... Ra4 {[%clk 0:00:19.2]} 36. Nb5
{[%clk 0:01:00.5]} 36... Re6 {[%clk 0:00:10.8]} 37. Kb3 {[%clk 0:00:57.5]} 37...
Ra8 {[%clk 0:00:02.9]} 38. c7 {[%clk 0:00:57.7]} 38... Rc8 {[%clk 0:00:02.1]}
39. Nfd6+ {[%clk 0:00:58]} 39... Nxd6 {[%clk 0:00:01.9]} 40. Nxd6+ {[%clk
0:00:58.9]} 40... Rxd6 {[%clk 0:00:01.9]} 41. Rxd6 {[%clk 0:00:59.8]} 1-0

[Event "Early-Titled-Tuesday-Blitz-June-18-2024"]
[Site "Chess.com"]
[Date "2024.06.18"]
[Round "1"]
[White "MaestroCheck"]
[Black "teresin05"]
[Result "1-0"]
[WhiteElo "2640"]
[BlackElo "2311"]
[TimeControl "180+1"]
[EndTime "8:06:45 PDT"]
[Termination "MaestroCheck won by checkmate"]

1. e4 {[%clk 0:02:58.8]} 1... c5 {[%clk 0:02:58.9]} 2. Nc3 {[%clk 0:02:57.8]}
2... Nc6 {[%clk 0:02:57.9]} 3. Bb5 {[%clk 0:02:58]} 3... Nd4 {[%clk 0:02:56.8]}
4. Nf3 {[%clk 0:02:58.3]} 4... a6 {[%clk 0:02:51.3]} 5. Bd3 {[%clk 0:02:58.6]}
5... g6 {[%clk 0:02:49.9]} 6. O-O {[%clk 0:02:57.1]} 6... Bg7 {[%clk 0:02:49.8]}
7. Re1 {[%clk 0:02:57]} 7... d6 {[%clk 0:02:33.3]} 8. Nxd4 {[%clk 0:02:51.2]}
8... cxd4 {[%clk 0:02:28.1]} 9. Ne2 {[%clk 0:02:49.5]} 9... e5 {[%clk
0:02:23.9]} 10. c3 {[%clk 0:02:48.3]} 10... dxc3 {[%clk 0:02:22.1]} 11. dxc3
{[%clk 0:02:46]} 11... Ne7 {[%clk 0:02:18.3]} 12. Be3 {[%clk 0:02:36.7]} 12...
Be6 {[%clk 0:02:07.4]} 13. c4 {[%clk 0:02:28.1]} 13... O-O {[%clk 0:02:00]} 14.
Nc3 {[%clk 0:02:22.1]} 14... f5 {[%clk 0:01:58.1]} 15. Nd5 {[%clk 0:01:45.7]}
15... fxe4 {[%clk 0:01:55.2]} 16. Bxe4 {[%clk 0:01:45.5]} 16... Rc8 {[%clk
0:01:32.3]} 17. Bg5 {[%clk 0:01:24.9]} 17... Bxd5 {[%clk 0:01:28.7]} 18. Bxd5+
{[%clk 0:01:25]} 18... Kh8 {[%clk 0:01:27.5]} 19. Rc1 {[%clk 0:01:23.7]} 19...
Bf6 {[%clk 0:01:23.8]} 20. Bxf6+ {[%clk 0:01:22.1]} 20... Rxf6 {[%clk
0:01:24.7]} 21. Bxb7 {[%clk 0:01:22.4]} 21... Rb8 {[%clk 0:01:14.1]} 22. Bf3
{[%clk 0:01:05.5]} 22... Rxb2 {[%clk 0:01:10.8]} 23. c5 {[%clk 0:01:00.4]} 23...
Rxa2 {[%clk 0:00:56.4]} 24. Rxe5 {[%clk 0:00:56.3]} 24... Rb2 {[%clk 0:00:38.7]}
25. c6 {[%clk 0:00:52.9]} 25... Nxc6 {[%clk 0:00:14.1]} 26. Rxc6 {[%clk
0:00:48.5]} 26... Qb8 {[%clk 0:00:10.5]} 27. Re1 {[%clk 0:00:47.7]} 27... a5
{[%clk 0:00:08.1]} 28. Qd4 {[%clk 0:00:47.6]} 28... Kg7 {[%clk 0:00:07]} 29. h3
{[%clk 0:00:46.7]} 29... Rb1 {[%clk 0:00:06.8]} 30. Rcc1 {[%clk 0:00:42.4]}
30... Rxc1 {[%clk 0:00:06.9]} 31. Rxc1 {[%clk 0:00:42.4]} 31... Qb5 {[%clk
0:00:07.2]} 32. Rc7+ {[%clk 0:00:41.5]} 32... Kh6 {[%clk 0:00:06.1]} 33. Qxf6
{[%clk 0:00:42]} 33... Qb1+ {[%clk 0:00:05.6]} 34. Kh2 {[%clk 0:00:42.2]} 34...
Qb8 {[%clk 0:00:05.2]} 35. Qg7+ {[%clk 0:00:40.9]} 35... Kg5 {[%clk 0:00:05.5]}
36. Qe7+ {[%clk 0:00:40.2]} 36... Kh6 {[%clk 0:00:05.4]} 37. Qh4# {[%clk
0:00:40.2]} 1-0

[Event "Early-Titled-Tuesday-Blitz-June-18-2024"]
[Site "Chess.com"]
[Date "2024.06.18"]
[Round "1"]
[White "Sam_ChessMood"]
[Black "Schattman"]
[Result "1-0"]
[WhiteElo "2956"]
[BlackElo "2521"]
[TimeControl "180+1"]
[EndTime "8:06:48 PDT"]
[Termination "Sam_ChessMood won on time"]

1. d4 {[%clk 0:02:59.9]} 1... d5 {[%clk 0:02:57.9]} 2. c4 {[%clk 0:02:59]} 2...
e6 {[%clk 0:02:58.4]} 3. Nc3 {[%clk 0:02:58.3]} 3... Be7 {[%clk 0:02:58.9]} 4.
cxd5 {[%clk 0:02:57.5]} 4... exd5 {[%clk 0:02:58.3]} 5. Bf4 {[%clk 0:02:57.6]}
5... c6 {[%clk 0:02:55.9]} 6. e3 {[%clk 0:02:57.4]} 6... Bf5 {[%clk 0:02:53.9]}
7. Nge2 {[%clk 0:02:54.7]} 7... Nf6 {[%clk 0:02:46.5]} 8. Ng3 {[%clk 0:02:52.9]}
8... Bg4 {[%clk 0:02:46.4]} 9. Qc2 {[%clk 0:02:45]} 9... O-O {[%clk 0:02:37.6]}
10. Bd3 {[%clk 0:02:41.5]} 10... g6 {[%clk 0:02:37.5]} 11. h4 {[%clk 0:02:35.7]}
11... Nh5 {[%clk 0:02:29.4]} 12. Nxh5 {[%clk 0:02:30]} 12... Bxh5 {[%clk
0:02:28.6]} 13. f3 {[%clk 0:02:20.8]} 13... Bxh4+ {[%clk 0:02:15.6]} 14. g3
{[%clk 0:02:19.6]} 14... Bg5 {[%clk 0:02:13.1]} 15. Kf2 {[%clk 0:02:02.2]} 15...
Bxf4 {[%clk 0:02:03.7]} 16. exf4 {[%clk 0:02:01.9]} 16... f5 {[%clk 0:01:45.9]}
17. Rxh5 {[%clk 0:01:39.5]} 17... gxh5 {[%clk 0:01:43.8]} 18. Rh1 {[%clk
0:01:37.5]} 18... Nd7 {[%clk 0:01:27.5]} 19. Rxh5 {[%clk 0:01:32.4]} 19... Nf6
{[%clk 0:01:27.4]} 20. Rxf5 {[%clk 0:01:27.8]} 20... Qe7 {[%clk 0:01:10.9]} 21.
Re5 {[%clk 0:01:20.8]} 21... Qb4 {[%clk 0:00:58]} 22. Ne2 {[%clk 0:01:18.1]}
22... c5 {[%clk 0:00:46.5]} 23. a3 {[%clk 0:01:02.1]} 23... Qa5 {[%clk
0:00:36.5]} 24. Qxc5 {[%clk 0:00:58.1]} 24... Qxc5 {[%clk 0:00:28.3]} 25. dxc5
{[%clk 0:00:59]} 25... Rac8 {[%clk 0:00:26.4]} 26. b4 {[%clk 0:00:56]} 26... b6
{[%clk 0:00:19]} 27. Bf5 {[%clk 0:00:55.9]} 27... Rce8 {[%clk 0:00:15]} 28. c6
{[%clk 0:00:53.1]} 28... Kf7 {[%clk 0:00:04.2]} 29. c7 {[%clk 0:00:47.6]} 29...
Rc8 {[%clk 0:00:03.8]} 30. Be6+ {[%clk 0:00:47.6]} 30... Kg7 {[%clk 0:00:03.5]}
31. Bxc8 {[%clk 0:00:46.2]} 31... Rxc8 {[%clk 0:00:03]} 32. Nd4 {[%clk
0:00:46.5]} 32... Kf7 {[%clk 0:00:01.5]} 33. Nb5 {[%clk 0:00:45.5]} 33... a6
{[%clk 0:00:01.3]} 34. Nd6+ {[%clk 0:00:45.5]} 1-0

[Event "Early-Titled-Tuesday-Blitz-June-18-2024"]
[Site "Chess.com"]
[Date "2024.06.18"]
[Round "1"]
[White "klimkoj"]
[Black "IndianSchoolOfSuffering"]
[Result "1-0"]
[WhiteElo "2891"]
[BlackElo "2501"]
[TimeControl "180+1"]
[EndTime "8:06:48 PDT"]
[Termination "klimkoj won by resignation"]

1. e4 {[%clk 0:03:00.9]} 1... c5 {[%clk 0:02:55.6]} 2. Nf3 {[%clk 0:03:00.8]}
2... d6 {[%clk 0:02:54.5]} 3. c3 {[%clk 0:02:58.8]} 3... Nf6 {[%clk 0:02:52.6]}
4. h3 {[%clk 0:02:57.7]} 4... Nc6 {[%clk 0:02:49.6]} 5. Bd3 {[%clk 0:02:55.5]}
5... e6 {[%clk 0:02:48.2]} 6. O-O {[%clk 0:02:54.6]} 6... a6 {[%clk 0:02:48.4]}
7. Bc2 {[%clk 0:02:54.7]} 7... Be7 {[%clk 0:02:48.2]} 8. d4 {[%clk 0:02:55.1]}
8... cxd4 {[%clk 0:02:48.3]} 9. cxd4 {[%clk 0:02:56]} 9... O-O {[%clk
0:02:46.3]} 10. Nc3 {[%clk 0:02:55.5]} 10... e5 {[%clk 0:02:43.1]} 11. Be3
{[%clk 0:02:47.4]} 11... exd4 {[%clk 0:02:24.9]} 12. Nxd4 {[%clk 0:02:47.1]}
12... Re8 {[%clk 0:02:24.6]} 13. Qd2 {[%clk 0:02:40]} 13... Nxd4 {[%clk
0:02:20.9]} 14. Qxd4 {[%clk 0:02:39.4]} 14... Be6 {[%clk 0:02:21.5]} 15. Rad1
{[%clk 0:02:32.6]} 15... Rc8 {[%clk 0:02:20]} 16. Bf4 {[%clk 0:02:28.6]} 16...
b5 {[%clk 0:02:09.8]} 17. a3 {[%clk 0:02:24.1]} 17... Rc4 {[%clk 0:02:03.6]} 18.
Qa7 {[%clk 0:02:01.3]} 18... Qa8 {[%clk 0:01:38]} 19. Qxa8 {[%clk 0:01:57]}
19... Rxa8 {[%clk 0:01:38.9]} 20. Bxd6 {[%clk 0:01:50.9]} 20... Bxd6 {[%clk
0:01:39]} 21. Rxd6 {[%clk 0:01:51.8]} 21... b4 {[%clk 0:01:39.4]} 22. axb4
{[%clk 0:01:44.4]} 22... Rxb4 {[%clk 0:01:39]} 23. Rfd1 {[%clk 0:01:24.9]} 23...
g6 {[%clk 0:01:32.7]} 24. e5 {[%clk 0:00:42]} 24... Ne8 {[%clk 0:01:31.8]} 25.
Rd8 {[%clk 0:00:40.9]} 25... Rbb8 {[%clk 0:01:26.6]} 26. Rxb8 {[%clk 0:00:37.1]}
26... Rxb8 {[%clk 0:01:26.8]} 27. Na4 {[%clk 0:00:38]} 27... Nc7 {[%clk
0:01:16.5]} 28. Rd6 {[%clk 0:00:32.1]} 28... Rb4 {[%clk 0:00:58.6]} 29. Rc6
{[%clk 0:00:28.1]} 29... Nb5 {[%clk 0:00:53.3]} 30. Rxa6 {[%clk 0:00:21]} 30...
Nd4 {[%clk 0:00:52.8]} 31. Bd1 {[%clk 0:00:19.3]} 31... Rc4 {[%clk 0:00:47.4]}
32. Nc3 {[%clk 0:00:18.3]} 32... Rb4 {[%clk 0:00:42.9]} 33. Bg4 {[%clk
0:00:13.4]} 33... Rxb2 {[%clk 0:00:38.1]} 34. Ne4 {[%clk 0:00:12.6]} 34... Bd5
{[%clk 0:00:31.4]} 35. Nf6+ {[%clk 0:00:12.8]} 1-0

[Event "Early-Titled-Tuesday-Blitz-June-18-2024"]
[Site "Chess.com"]
[Date "2024.06.18"]
[Round "1"]
[White "Angry_Twin"]
[Black "CristianS27"]
[Result "1-0"]
[WhiteElo "2912"]
[BlackElo "2505"]
[TimeControl "180+1"]
[EndTime "8:06:49 PDT"]
[Termination "Angry_Twin won on time"]

1. e4 {[%clk 0:03:00.9]} 1... e5 {[%clk 0:02:56.5]} 2. Nf3 {[%clk 0:03:00.8]}
2... Nc6 {[%clk 0:02:56.6]} 3. Bc4 {[%clk 0:03:00.8]} 3... Nf6 {[%clk
0:02:56.7]} 4. d3 {[%clk 0:03:00.6]} 4... Bc5 {[%clk 0:02:57.3]} 5. c3 {[%clk
0:03:00.8]} 5... d6 {[%clk 0:02:57.6]} 6. O-O {[%clk 0:03:00.8]} 6... a6 {[%clk
0:02:58.2]} 7. a4 {[%clk 0:03:00.1]} 7... Ba7 {[%clk 0:02:58.6]} 8. Re1 {[%clk
0:02:59.3]} 8... h6 {[%clk 0:02:54.4]} 9. Nbd2 {[%clk 0:02:54.2]} 9... Nh5
{[%clk 0:02:49.1]} 10. Nf1 {[%clk 0:02:36.7]} 10... Qf6 {[%clk 0:02:46.5]} 11.
Be3 {[%clk 0:02:36.4]} 11... Nf4 {[%clk 0:02:46.1]} 12. Ng3 {[%clk 0:02:18.2]}
12... h5 {[%clk 0:02:35.7]} 13. d4 {[%clk 0:02:14]} 13... h4 {[%clk 0:02:27.9]}
14. Nf5 {[%clk 0:02:14]} 14... h3 {[%clk 0:02:04.7]} 15. Bxf4 {[%clk 0:02:11.8]}
15... exf4 {[%clk 0:02:04.3]} 16. Bd3 {[%clk 0:01:43.8]} 16... Bxf5 {[%clk
0:01:22.7]} 17. exf5+ {[%clk 0:01:43.3]} 17... Kd7 {[%clk 0:01:21.9]} 18. Qd2
{[%clk 0:01:36.3]} 18... hxg2 {[%clk 0:01:15.2]} 19. Qxf4 {[%clk 0:01:35.8]}
19... Rae8 {[%clk 0:01:13.3]} 20. Qg5 {[%clk 0:01:33.2]} 20... Qh6 {[%clk
0:00:48.6]} 21. Qxh6 {[%clk 0:01:31.3]} 21... Rxh6 {[%clk 0:00:49.5]} 22. Rxe8
{[%clk 0:01:30.9]} 22... Kxe8 {[%clk 0:00:48.9]} 23. Kxg2 {[%clk 0:01:31.4]}
23... Ne7 {[%clk 0:00:43.4]} 24. Be4 {[%clk 0:01:27.6]} 24... d5 {[%clk
0:00:40.6]} 25. Bd3 {[%clk 0:01:27.9]} 25... c5 {[%clk 0:00:41.1]} 26. Re1
{[%clk 0:01:26.4]} 26... Kd7 {[%clk 0:00:39.6]} 27. Ne5+ {[%clk 0:01:26.6]}
27... Ke8 {[%clk 0:00:35.7]} 28. Ng4 {[%clk 0:01:22.3]} 28... Rh4 {[%clk
0:00:30]} 29. Kg3 {[%clk 0:01:21.1]} 29... Rh8 {[%clk 0:00:22.9]} 30. dxc5
{[%clk 0:01:11.1]} 30... Bxc5 {[%clk 0:00:21.6]} 31. f6 {[%clk 0:01:00.2]} 31...
gxf6 {[%clk 0:00:20.9]} 32. Nxf6+ {[%clk 0:01:01.1]} 32... Kd8 {[%clk
0:00:21.8]} 33. f4 {[%clk 0:00:59.5]} 33... Kc7 {[%clk 0:00:06.7]} 34. Re2
{[%clk 0:00:46.1]} 34... Rh6 {[%clk 0:00:06.8]} 35. Ng4 {[%clk 0:00:46.1]} 35...
Rh8 {[%clk 0:00:02.1]} 36. Ne5 {[%clk 0:00:46.2]} 36... Rh7 {[%clk 0:00:01.1]}
37. Bxh7 {[%clk 0:00:45.8]} 1-0